bitfinex-derivatives/quotes_SOLF0:USTF0_20241120
["timestamp","ask_amount","ask_price","bid_price","bid_amount"]
[1732073848669,2.1606,231.15,231.0,28.06379329]
[1732073848969,2.1606,231.15,231.03,2.1616]
[1732073849173,2.1606,231.15,231.04,4.2385]
[1732073849770,2.1604,231.17,231.04,5.4518]
[1732073849967,28.06379329,231.28,231.09,28.06379329]
[1732073850178,28.06379329,231.28,231.1,1.2804]
[1732073850367,264.87376983,231.36,231.17,28.06379329]
[1732073850678,28.06379329,231.36,231.18,2.4118]
[1732073850977,2.1589,231.33,231.21,2.16]
[1732073851673,2.159,231.32,231.21,2.16]
[1732073851874,28.06379329,231.36,231.19,3.04]
[1732073852970,28.06379329,231.36,231.2,3.02]
[1732073854174,28.06379329,231.32,231.21,3.04]
[1732073854669,28.06379329,231.36,231.21,3.04]
[1732073854670,28.06379329,231.3,231.21,3.04]
[1732073855278,2.1599,231.23,231.21,3.04]
[1732073856078,2.1599,231.23,231.1,4.2404]
[1732073856079,28.06379329,231.22,231.16,3.04]
[1732073856280,28.06379329,231.22,231.15,3.04]
[1732073856677,2.1605,231.16,231.15,3.04]
[1732073857179,28.06379329,231.22,231.1,2.96]
[1732073857377,2.1607,231.14,231.11,3.04]
[1732073859188,2.1605,231.16,231.11,3.04]
[1732073859475,28.06379329,231.22,231.11,3.04]
[1732073860273,2.1605,231.16,231.11,3.04]
[1732073860685,28.06379329,231.22,231.11,3.04]
[1732073861779,28.06379329,231.22,231.12,3.46]
[1732073862380,2.1605,231.16,231.12,3.46]
[1732073863077,28.06379329,231.22,231.12,3.46]
[1732073863273,28.06379329,231.26,231.12,3.46]
[1732073864185,2.1599,231.22,231.12,3.46]
[1732073864576,17.24424613,231.26,231.12,3.46]
[1732073864779,1.1981,231.29,231.12,3.46]
[1732073865087,18.44234613,231.29,231.12,3.46]
[1732073865286,17.24424613,231.29,231.12,3.46]
[1732073866383,2.1597,231.24,231.13,2.1607]
[1732073866580,2.1597,231.24,231.14,1.2262]
[1732073867388,17.24424613,231.29,231.15,1.2663]
[1732073867680,17.24424613,231.29,231.16,2.96]
[1732073867883,2.1595,231.27,231.16,2.96]
[1732073868078,17.24424613,231.29,231.17,1.2834]
[1732073869382,2.1596,231.25,231.17,1.2834]
[1732073869578,2.1596,231.25,231.16,2.96]
[1732073870885,17.24424613,231.32,231.16,2.96]
[1732073871387,2.1593,231.29,231.17,2.1604]
[1732073871589,17.24424613,231.32,231.17,2.1604]
[1732073873088,205.17303244,231.41,231.22,17.24424613]
[1732073873283,17.24424613,231.45,231.26,17.24424613]
[1732073873483,2.1582,231.41,231.27,2.494]
[1732073873680,17.24424613,231.45,231.31,2.1591]
[1732073873890,17.24424613,231.45,231.32,2.96]
[1732073874587,17.24424613,231.41,231.32,2.34]
[1732073874883,17.24424613,231.41,231.33,2.96]
[1732073875189,17.24424613,231.45,231.32,2.34]
[1732073875391,17.24424613,231.39,231.32,2.34]
[1732073876288,2.1589,231.33,231.32,2.34]
[1732073876889,2.1589,231.33,231.28,2.96]
[1732073877881,17.24424613,231.45,231.28,2.96]
[1732073879088,2.1586,231.37,231.29,2.96]
[1732073879484,17.24424613,231.45,231.29,2.96]
[1732073879883,17.24424613,231.45,231.29,5.1192]
[1732073880086,0.941,231.48,231.29,22.36344613]
[1732073881490,0.941,231.48,231.3,2.1591]
[1732073881695,2.1581,231.42,231.29,20.20424613]
[1732073881891,17.24424613,231.49,231.29,2.96]
[1732073882088,17.24424613,231.49,231.31,19.40324613]
[1732073882396,2.1579,231.44,231.31,19.40324613]
[1732073882694,17.24424613,231.49,231.33,2.1589]
[1732073883193,17.24424613,231.49,231.34,1.2248]
[1732073883396,0.941,231.52,231.34,1.2248]
[1732073883895,2.1578,231.45,231.35,1.2965]
[1732073884492,0.941,231.52,231.35,1.2965]
[1732073884493,17.24424613,231.49,231.35,1.2965]
[1732073884791,17.24424613,231.41,231.29,2.96]
[1732073885290,17.24424613,231.45,231.29,2.96]
[1732073886590,2.1587,231.35,231.29,2.96]
[1732073887190,2.1588,231.34,231.29,2.96]
[1732073888287,17.24424613,231.45,231.29,2.96]
[1732073888487,1.0,231.48,231.29,20.20424613]
[1732073888891,1.0,231.48,231.31,2.159]
[1732073889094,1.0,231.48,231.3,1.2669]
[1732073889301,1.0,231.48,231.32,2.96]
[1732073890196,17.24424613,231.45,231.32,2.96]
[1732073890791,17.24424613,231.41,231.32,2.96]
[1732073891191,2.159,231.33,231.32,5.3]
[1732073891696,17.24424613,231.41,231.32,6.41]
[1732073892196,0.939,231.42,231.32,6.41]
[1732073892398,0.939,231.42,231.32,8.75]
[1732073892998,17.24424613,231.45,231.32,8.75]
[1732073893696,2.1584,231.39,231.32,8.75]
[1732073894493,17.24424613,231.45,231.32,8.75]
[1732073894804,2.1584,231.38,231.32,8.75]
[1732073896395,2.1584,231.38,231.32,5.79]
[1732073896694,17.24424613,231.45,231.32,8.69]
[1732073897298,2.1587,231.35,231.32,8.69]
[1732073899104,17.24424613,231.45,231.32,8.69]
[1732073899308,18.24424613,231.48,231.32,8.69]
[1732073899699,18.24424613,231.48,231.32,5.79]
[1732073900004,18.24424613,231.48,231.33,2.9]
[1732073900199,2.1587,231.35,231.33,2.9]
[1732073900405,17.24424613,231.44,231.33,2.9]
[1732073900703,2.1586,231.37,231.33,2.9]
[1732073900905,17.24424613,231.44,231.33,2.9]
[1732073902108,2.1584,231.39,231.33,2.9]
[1732073902604,17.24424613,231.44,231.33,2.9]
[1732073902810,2.1582,231.41,231.33,2.9]
[1732073903006,17.24424613,231.44,231.33,2.9]
[1732073903505,2.1584,231.38,231.33,2.9]
[1732073903906,17.24424613,231.44,231.33,2.9]
[1732073904611,2.1584,231.38,231.33,2.9]
[1732073905906,2.1583,231.4,231.33,2.9]
[1732073906502,2.1583,231.39,231.33,2.9]
[1732073907104,175.01148909,231.43,231.33,2.9]
[1732073907310,2.1582,231.4,231.33,2.9]
[1732073907906,175.01148909,231.43,231.33,2.9]
[1732073908114,175.01148909,231.43,231.34,1.2826]
[1732073908307,175.01148909,231.44,231.34,1.2826]
[1732073908903,2.1581,231.41,231.34,1.2826]
[1732073909103,175.01148909,231.45,231.34,1.2826]
[1732073909404,175.01148909,231.47,231.34,1.2826]
[1732073909609,175.01148909,231.47,231.35,2.97]
[1732073910312,17.24424613,231.44,231.36,2.88]
[1732073910610,2.158,231.43,231.36,2.88]
[1732073911816,2.1581,231.42,231.36,2.88]
[1732073913222,2.1579,231.43,231.36,2.88]
[1732073914915,30.14293226,231.47,231.36,2.88]
[1732073915311,30.14293226,231.47,231.37,17.24424613]
[1732073916015,177.16878909,231.51,231.4,2.1582]
[1732073916215,175.01148909,231.52,231.41,3.45]
[1732073916610,205.15442135,231.58,231.45,17.24424613]
[1732073916818,175.01148909,231.58,231.46,2.88]
[1732073917021,175.01148909,231.58,231.46,4.403]
[1732073917222,2.1568,231.56,231.46,4.403]
[1732073917522,175.01148909,231.59,231.46,4.403]
[1732073917821,175.01148909,231.6,231.46,4.403]
[1732073918021,303.10219552,231.62,231.47,2.34]
[1732073918022,236.80997654,231.62,231.47,2.34]
[1732073918411,2.1567,231.57,231.47,2.34]
[1732073919012,30.13282681,231.64,231.47,2.34]
[1732073919216,2.16934229,231.63,231.47,2.34]
[1732073919616,192.25573522,231.65,231.47,2.34]
[1732073919914,17.24424613,231.61,231.47,2.34]
[1732073920119,1.4565,231.6,231.48,2.88]
[1732073920314,2.5011,231.6,231.48,2.88]
[1732073921313,2.1572,231.51,231.48,2.88]
[1732073924322,32.63392681,231.6,231.48,2.88]
[1732073924512,30.13282681,231.6,231.48,2.88]
[1732073924714,2.1568,231.55,231.48,2.88]
[1732073925316,2.157,231.54,231.48,2.88]
[1732073925620,17.24424613,231.61,231.48,2.88]
[1732073926517,2.157,231.54,231.48,2.88]
[1732073928121,2.1571,231.52,231.47,2.34]
[1732073928326,10.74525336,231.52,231.47,2.34]
[1732073928731,2.1575,231.48,231.47,2.34]
[1732073929523,2.1575,231.48,231.47,1.03943439]
[1732073929922,2.1575,231.48,231.41,3.45]
[1732073930127,10.74525336,231.49,231.42,2.72]
[1732073930722,2.1577,231.46,231.42,2.72]
[1732073931423,2.1577,231.46,231.42,5.69]
[1732073931624,2.1575,231.48,231.42,5.69]
[1732073931926,10.74525336,231.52,231.42,5.69]
[1732073932532,2.1576,231.47,231.42,5.69]
[1732073932723,2.1576,231.47,231.42,6.73]
[1732073933028,2.1576,231.47,231.42,5.69]
[1732073933424,175.01148909,231.53,231.42,5.69]
[1732073933829,10.74525336,231.55,231.42,10.18]
[1732073934221,2.1572,231.51,231.42,10.18]
[1732073934926,2.1572,231.51,231.43,10.74525336]
[1732073936229,2.1571,231.52,231.43,10.74525336]
[1732073937430,2.1571,231.53,231.43,10.74525336]
[1732073937933,2.1569,231.55,231.43,12.90315336]
[1732073938925,2.1568,231.56,231.43,10.74525336]
[1732073939131,247.5552299,231.58,231.43,10.74525336]
[1732073939635,2.1569,231.54,231.44,2.1579]
[1732073939836,2.1569,231.54,231.45,1.5424]
[1732073940027,2.1568,231.55,231.45,1.5424]
[1732073940431,2.1568,231.55,231.45,3.7001]
[1732073941738,2.1568,231.55,231.46,12.90285336]
[1732073942239,2.1568,231.55,231.47,3.0921]
[1732073942437,2.1568,231.55,231.48,2.72]
[1732073944545,10.74525336,231.53,231.46,2.72]
[1732073944941,10.74525336,231.5,231.42,7.46]
[1732073945136,10.74525336,231.5,231.47,2.72]
[1732073945448,2.1575,231.48,231.47,2.72]
[1732073946039,10.74525336,231.5,231.47,2.72]
[1732073946240,2.1574,231.49,231.47,2.72]
[1732073948740,2.1575,231.48,231.47,2.72]
[1732073949137,10.74525336,231.5,231.47,2.72]
[1732073949336,175.01148909,231.54,231.47,2.72]
[1732073949337,2.1573,231.51,231.47,2.72]
[1732073950246,175.01148909,231.56,231.47,2.72]
[1732073950749,175.01148909,231.56,231.48,1.04]
[1732073950945,175.01148909,231.59,231.48,2.6545]
[1732073951150,175.01148909,231.59,231.48,5.7424]
[1732073951443,236.80997654,231.62,231.48,5.7424]
[1732073952144,2.1563,231.62,231.5,10.74525336]
[1732073952549,2.1563,231.62,231.51,2.1572]
[1732073952851,175.01148909,231.66,231.56,10.74525336]
[1732073953050,66.27275178,231.7,231.59,10.74525336]
[1732073953051,175.01148909,231.69,231.59,10.74525336]
[1732073953245,36.1487737,231.7,231.59,10.74525336]
[1732073953444,36.1487737,231.7,231.6,1.4797]
[1732073953651,38.3042737,231.7,231.6,4.9297]
[1732073953843,10.74525336,231.71,231.6,3.45]
[1732073954151,10.74525336,231.68,231.6,6.13]
[1732073954653,10.74525336,231.65,231.6,3.45]
[1732073954856,10.74525336,231.68,231.6,3.45]
[1732073955150,2.1561,231.63,231.6,3.45]
[1732073955951,2.1562,231.62,231.6,3.45]
[1732073956951,2.1562,231.62,231.6,5.504]
[1732073957255,2.1568,231.56,231.53,2.68]
[1732073957950,10.74525336,231.62,231.53,2.68]
[1732073958347,10.74525336,231.59,231.53,2.68]
[1732073958857,2.1568,231.56,231.53,2.68]
[1732073959052,2.1568,231.56,231.54,3.45]
[1732073959559,10.74525336,231.59,231.54,3.45]
[1732073961168,2.1567,231.57,231.54,3.45]
[1732073961364,10.74525336,231.59,231.54,3.45]
[1732073961866,2.1567,231.57,231.54,3.45]
[1732073962567,2.1568,231.56,231.54,3.45]
[1732073963961,10.74525336,231.59,231.54,3.45]
[1732073963962,2.1565,231.59,231.54,3.45]
[1732073964161,175.01148909,231.61,231.54,3.45]
[1732073964569,10.74525336,231.62,231.54,3.45]
[1732073964766,2.1566,231.58,231.54,3.45]
[1732073967070,175.01148909,231.66,231.54,3.45]
[1732073967271,10.74525336,231.69,231.55,1.47]
[1732073967574,10.74525336,231.69,231.55,12.21525336]
[1732073967872,2.1559,231.65,231.55,12.21525336]
[1732073968380,2.1559,231.65,231.56,1.5556]
[1732073969268,2.1558,231.67,231.56,3.7123]
[1732073969571,3.6505863,231.76,231.58,10.74525336]
[1732073969572,185.75674245,231.72,231.58,10.74525336]
[1732073969771,175.01148909,231.72,231.59,2.68]
[1732073970169,422.56671899,231.75,231.59,2.68]
[1732073970673,185.75674245,231.75,231.59,2.68]
[1732073971271,2.1554,231.7,231.59,4.8364]
[1732073972372,2.1555,231.69,231.59,4.8364]
[1732073972573,10.74525336,231.75,231.61,2.1562]
[1732073972872,2.1554,231.71,231.61,2.1562]
[1732073973072,10.74525336,231.75,231.6,3.45]
[1732073973272,10.74525336,231.75,231.6,5.6063]
[1732073974273,2.1555,231.7,231.6,5.6063]
[1732073974874,185.75674245,231.75,231.61,12.90155336]
[1732073975170,185.75674245,231.75,231.6,3.45]
[1732073975373,185.75674245,231.75,231.61,2.68]
[1732073975374,2.1559,231.66,231.61,2.68]
[1732073975570,10.74525336,231.69,231.61,2.68]
[1732073976678,10.74525336,231.69,231.62,2.68]
[1732073976880,175.01148909,231.71,231.6,3.45]
[1732073976881,10.74525336,231.66,231.6,3.45]
[1732073977186,2.1562,231.62,231.6,3.45]
[1732073979881,10.74525336,231.66,231.6,3.45]
[1732073980580,2.1561,231.63,231.6,3.45]
[1732073981677,2.156,231.65,231.6,6.13]
[1732073984477,2.156,231.64,231.6,6.13]
[1732073985982,2.1561,231.63,231.6,6.13]
[1732073987278,2.156,231.64,231.6,6.13]
[1732073987884,10.74525336,231.66,231.6,6.13]
[1732073988082,10.74525336,231.66,231.6,3.45]
[1732073988488,2.156,231.65,231.6,3.45]
[1732073988684,10.74525336,231.66,231.6,3.45]
[1732073989382,2.1563,231.61,231.6,3.45]
[1732073990787,12.90145336,231.62,231.6,3.45]
[1732073990986,10.74525336,231.62,231.6,3.45]
[1732073992282,2.1563,231.62,231.6,3.45]
[1732073994187,10.74525336,231.65,231.6,3.45]
[1732073994783,6.87302623,231.63,231.6,3.45]
[1732073995379,175.01148909,231.68,231.6,3.45]
[1732073995787,6.87302623,231.67,231.6,3.45]
[1732073996183,6.87302623,231.69,231.61,6.87302623]
[1732073997491,6.87302623,231.69,231.6,1.5372]
[1732073997689,6.87302623,231.67,231.6,1.5372]
[1732073998085,6.87302623,231.67,231.6,4.9872]
[1732073998288,6.87302623,231.65,231.6,4.9872]
[1732073998585,9.02922623,231.63,231.6,3.45]
[1732074000794,2.1562,231.63,231.6,3.45]
[1732074000986,185.74995449,231.67,231.6,3.45]
[1732074001187,2.1563,231.61,231.6,3.45]
[1732074001382,2.1563,231.61,231.58,1.04]
[1732074001788,2.1564,231.6,231.58,1.04]
[1732074005984,2.1565,231.59,231.58,1.04]
[1732074007393,10.7384654,231.61,231.57,2.77]
[1732074007590,12.8949654,231.58,231.57,2.77]
[1732074007892,10.7384654,231.58,231.48,2.68]
[1732074008088,10.7384654,231.54,231.48,2.68]
[1732074008293,10.7384654,231.52,231.44,1.5334]
[1732074008487,10.7384654,231.52,231.44,4.2134]
[1732074009091,10.7384654,231.52,231.48,0.24373]
[1732074009287,2.1573,231.5,231.48,0.24373]
[1732074009888,2.1571,231.52,231.48,0.24373]
[1732074010292,10.7384654,231.58,231.48,0.24373]
[1732074011198,2.1569,231.54,231.48,0.24373]
[1732074011497,10.7384654,231.58,231.48,2.92373]
[1732074011904,10.7384654,231.55,231.48,2.92373]
[1732074012501,2.1572,231.51,231.48,0.24373]
[1732074012803,10.7384654,231.55,231.48,0.24373]
[1732074013099,2.1574,231.49,231.48,0.24373]
[1732074014901,10.7384654,231.52,231.48,0.24373]
[1732074016102,2.1574,231.49,231.48,0.24373]
[1732074016298,10.7384654,231.52,231.48,0.24373]
[1732074017097,2.1574,231.49,231.48,0.24373]
[1732074017605,207.29766514,231.59,231.48,0.24373]
[1732074017803,30.12967605,231.59,231.48,0.24373]
[1732074018004,30.12967605,231.59,231.49,2.68]
[1732074018196,10.7384654,231.61,231.49,4.0952]
[1732074018598,10.7384654,231.61,231.49,5.6053]
[1732074018797,2.1563,231.61,231.49,5.6053]
[1732074019001,414.50146563,231.68,231.5,10.7384654]
[1732074019202,10.7384654,231.66,231.5,10.7384654]
[1732074019402,12.94133072,231.66,231.5,10.7384654]
[1732074019806,10.7384654,231.68,231.53,10.7384654]
[1732074020705,10.7384654,231.68,231.49,5.6053]
[1732074020706,10.7384654,231.7,231.54,2.68]
[1732074020905,10.7384654,231.7,231.55,10.7384654]
[1732074022197,2.1557,231.67,231.55,10.7384654]
[1732074022609,10.7384654,231.7,231.55,10.7384654]
[1732074022809,10.7384654,231.7,231.58,2.1565]
[1732074023104,10.7384654,231.73,231.59,4.526]
[1732074023303,10.7384654,231.73,231.6,2.68]
[1732074023504,10.7384654,231.73,231.61,2.1562]
[1732074023810,10.7384654,231.76,231.61,12.8946654]
[1732074024608,2.155,231.75,231.62,2.1561]
[1732074025507,2.1551,231.74,231.62,2.1561]
[1732074026817,10.7384654,231.79,231.64,10.7384654]
[1732074027116,175.01148909,231.77,231.64,10.7384654]
[1732074027512,175.01148909,231.79,231.67,10.7384654]
[1732074027712,175.01148909,231.79,231.68,2.68]
[1732074028113,175.01148909,231.79,231.69,4.3209]
[1732074028314,236.80997654,231.8,231.7,10.7384654]
[1732074028617,205.1163401,231.82,231.7,10.7384654]
[1732074028916,2.1544,231.82,231.71,2.1553]
[1732074029212,175.01148909,231.84,231.73,10.7384654]
[1732074029414,177.16568909,231.84,231.74,2.66]
[1732074029719,2.1542,231.84,231.74,2.66]
[1732074030216,2.154,231.86,231.74,4.815]
[1732074031313,2.1542,231.84,231.74,2.66]
[1732074031509,10.7384654,231.88,231.74,2.66]
[1732074031714,10.7384654,231.85,231.7,10.7384654]
[1732074032012,10.7384654,231.79,231.71,2.66]
[1732074032622,2.1548,231.77,231.71,2.66]
[1732074037027,2.1546,231.8,231.71,2.66]
[1732074037227,10.7384654,231.85,231.71,2.66]
[1732074038021,2.1544,231.82,231.71,2.66]
[1732074038224,10.7384654,231.85,231.71,2.66]
[1732074038426,10.7384654,231.88,231.71,13.3984654]
[1732074038928,10.7384654,231.88,231.73,2.1551]
[1732074039532,10.7384654,231.85,231.73,2.1551]
[1732074040024,10.7384654,231.85,231.71,15.5537654]
[1732074040429,10.7384654,231.85,231.71,13.3984654]
[1732074041131,10.7384654,231.85,231.71,10.7384654]
[1732074041331,2.1543,231.82,231.72,4.8152]
[1732074043030,2.1544,231.81,231.72,4.8152]
[1732074043433,10.7384654,231.82,231.69,4.3209]
[1732074043629,10.7384654,231.82,231.7,2.66]
[1732074044025,2.1547,231.79,231.7,2.66]
[1732074044226,10.7384654,231.82,231.7,2.66]
[1732074045629,2.1548,231.77,231.7,2.66]
[1732074046331,2.1547,231.79,231.7,2.66]
[1732074046526,10.7384654,231.82,231.7,2.66]
[1732074047033,2.1547,231.79,231.7,2.66]
[1732074047326,10.7384654,231.82,231.7,2.66]
[1732074047728,2.1546,231.79,231.7,2.66]
[1732074048626,2.1546,231.79,231.7,4.8154]
[1732074048826,10.7384654,231.82,231.7,2.66]
[1732074048827,2.1545,231.81,231.7,2.66]
[1732074049022,10.7384654,231.82,231.7,2.66]
[1732074049828,2.1554,231.71,231.61,2.44638]
[1732074050027,2.1554,231.71,231.62,2.66]
[1732074050329,10.7384654,231.76,231.62,2.66]
[1732074050531,10.7384654,231.76,231.62,4.8161]
[1732074050928,10.7384654,231.76,231.61,1.79028]
[1732074050929,2.1555,231.7,231.63,2.66]
[1732074051231,10.7384654,231.73,231.63,2.66]
[1732074051735,2.1554,231.7,231.63,2.66]
[1732074051932,12.92343477,231.73,231.63,2.66]
[1732074053333,2.1554,231.71,231.63,2.66]
[1732074054031,12.8936654,231.73,231.63,4.8161]
[1732074054632,10.7384654,231.73,231.63,2.66]
[1732074055133,10.7384654,231.79,231.63,13.3984654]
[1732074055331,10.7384654,231.79,231.64,2.9971]
[1732074055537,1.4571,231.81,231.66,10.7384654]
[1732074056033,2.1547,231.79,231.67,2.1557]
[1732074056239,1.4571,231.81,231.67,2.1557]
[1732074057242,2.1547,231.78,231.67,2.1557]
[1732074058145,2.1548,231.77,231.67,2.1557]
[1732074059847,10.7384654,231.79,231.67,2.1557]
[1732074060148,175.01148909,231.91,231.7,10.7384654]
[1732074060349,10.7384654,231.87,231.71,2.66]
[1732074060643,10.7384654,231.87,231.73,2.1551]
[1732074061247,2.1543,231.83,231.74,2.155]
[1732074062145,10.7384654,231.87,231.74,2.155]
[1732074063245,2.1541,231.84,231.74,2.155]
[1732074063548,2.1541,231.84,231.71,2.66]
[1732074063549,10.7384654,231.87,231.77,2.1548]
[1732074063751,12.8923654,231.87,231.78,2.66]
[1732074064944,10.7384654,231.9,231.78,2.66]
[1732074065241,185.74995449,231.93,231.79,10.7384654]
[1732074065443,10.7384654,231.89,231.74,1.2739]
[1732074065648,10.7384654,231.89,231.75,13.3984654]
[1732074066046,175.01148909,231.96,231.78,10.7384654]
[1732074066047,2.1536,231.91,231.78,10.7384654]
[1732074066447,10.7384654,231.95,231.78,10.7384654]
[1732074066646,10.7384654,231.95,231.81,10.7384654]
[1732074066943,175.01148909,231.97,231.79,1.3373]
[1732074066944,175.01148909,231.97,231.84,10.7384654]
[1732074067149,11.9194654,231.98,231.85,1.3343]
[1732074067348,2.153,231.97,231.85,1.3343]
[1732074068251,10.7384654,231.97,231.82,2.66]
[1732074068450,10.7384654,231.97,231.83,1.2775]
[1732074069352,2.1533,231.93,231.83,3.4317]
[1732074071650,175.01148909,231.99,231.85,10.7384654]
[1732074072053,10.7384654,232.0,231.88,10.7384654]
[1732074072245,2.1529,231.97,231.89,2.66]
[1732074073249,10.7384654,232.0,231.89,2.66]
[1732074073449,30.08228655,232.04,231.91,12.8919654]
[1732074073660,10.7384654,232.06,231.92,2.5633]
[1732074075249,2.1525,232.02,231.92,4.7166]
[1732074077857,2.1526,232.01,231.92,4.7166]
[1732074078063,10.7384654,232.09,231.95,2.1531]
[1732074078363,10.7384654,232.09,231.96,2.66]
[1732074078560,1.1814,232.13,231.92,1.2745]
[1732074078561,10.7384654,232.06,231.92,1.2745]
[1732074078861,10.7384654,232.06,231.93,2.66]
[1732074079176,12.8614188,232.06,231.93,2.66]
[1732074080362,2.1526,232.01,231.93,2.66]
[1732074081177,2.1527,232.0,231.94,2.66]
[1732074082576,10.7384654,232.03,231.94,2.66]
[1732074082774,2.1528,231.98,231.94,2.66]
[1732074084978,2.153,231.96,231.94,2.66]
[1732074085580,10.7384654,231.97,231.92,2.66]
[1732074085782,10.7384654,231.97,231.93,2.66]
[1732074085977,10.7384654,231.97,231.94,2.66]
[1732074086676,2.153,231.96,231.94,2.66]
[1732074088276,10.7384654,231.97,231.85,1.3837]
[1732074088480,10.7384654,231.97,231.81,35.67926988]
[1732074088481,10.7384654,231.88,231.81,2.66]
[1732074089084,10.7384654,231.91,231.81,2.66]
[1732074089282,10.7384654,231.94,231.81,2.66]
[1732074089777,10.7384654,231.94,231.84,0.36691]
[1732074089778,2.1535,231.91,231.84,0.36691]
[1732074090177,10.7384654,231.94,231.84,0.36691]
[1732074091282,1.18,232.01,231.84,0.36691]
[1732074091482,10.7384654,231.97,231.84,0.36691]
[1732074091685,10.7384654,231.97,231.84,1.71791]
[1732074093182,2.1534,231.92,231.84,1.71791]
[1732074093584,10.7384654,231.97,231.84,1.71791]
[1732074093784,2.1533,231.93,231.84,1.71791]
[1732074096284,2.1532,231.95,231.84,3.87201]
[1732074096488,11.9184654,232.01,231.86,10.7384654]
[1732074096787,11.9184654,232.01,231.87,2.66]
[1732074098083,2.20489648,232.04,231.89,10.7384654]
[1732074098084,10.7384654,232.04,231.89,10.7384654]
[1732074098285,2.1527,232.0,231.89,12.8920654]
[1732074099189,2.1527,231.99,231.89,12.8920654]
[1732074099484,10.7384654,232.04,231.89,10.7384654]
[1732074099985,10.7384654,232.04,231.93,2.1533]
[1732074100286,10.7384654,232.04,231.94,2.66]
[1732074100485,2.1525,232.02,231.94,2.66]
[1732074101987,2.1527,231.99,231.94,2.66]
[1732074102192,175.01148909,232.11,231.94,2.66]
[1732074102389,10.7384654,232.05,231.94,2.66]
[1732074102894,12.8907654,232.05,231.94,2.66]
[1732074103083,10.7384654,232.05,231.95,1.2975]
[1732074103390,2.1521,232.06,231.96,2.153]
[1732074103789,10.7384654,232.11,231.95,13.3086654]
[1732074104184,10.7384654,232.11,231.98,10.7384654]
[1732074104391,2.1518,232.1,231.99,2.1527]
[1732074104592,2.1518,232.1,232.0,2.66]
[1732074104985,10.7384654,232.14,231.98,10.7384654]
[1732074105186,2.1522,232.05,231.99,2.64]
[1732074105489,10.7384654,232.11,231.99,2.64]
[1732074106291,10.7384654,232.11,231.99,13.3784654]
[1732074107396,10.7384654,232.14,231.99,15.5311654]
[1732074107895,175.01148909,232.16,232.02,10.7384654]
[1732074108094,411.82146563,232.18,232.11,10.7384654]
[1732074108290,411.82146563,232.23,232.12,2.64]
[1732074108698,413.97196563,232.23,232.12,2.64]
[1732074108989,236.80997654,232.23,232.12,2.64]
[1732074109189,2.1506,232.22,232.12,2.64]
[1732074110296,2.1506,232.22,232.13,2.64]
[1732074110495,2.1507,232.21,232.13,2.64]
[1732074110692,10.7384654,232.2,232.04,1.2771]
[1732074110892,1.2015,232.29,232.05,2.64]
[1732074110893,2.1515,232.13,232.05,2.64]
[1732074111097,10.7384654,232.17,232.05,2.64]
[1732074111491,2.1513,232.15,232.05,2.64]
[1732074111697,10.7384654,232.17,232.05,2.64]
[1732074112194,10.7384654,232.17,232.0,1.3429]
[1732074112195,10.7384654,232.14,232.0,12.0813654]
[1732074112393,10.7384654,232.11,232.01,2.64]
[1732074112795,2.152,232.07,232.01,2.64]
[1732074113697,2.1525,232.02,231.96,2.7241]
[1732074113899,10.7384654,232.08,231.97,2.64]
[1732074114294,2.1521,232.07,231.97,2.64]
[1732074114898,2.1521,232.06,231.97,2.64]
[1732074116301,10.7384654,232.11,231.97,2.64]
[1732074116496,2.152,232.08,231.98,2.1528]
[1732074116901,2.152,232.08,231.98,12.8912654]
[1732074117293,10.7384654,232.11,231.98,10.7384654]